Workbook

Sheet Collateral Tables
B1: CNH CAPITAL AUSTRALIA RECEIVABLES TRUST SERIES 2016-1 (TERM DEAL)
B2: COLLATERAL DATA TABLES
B4: OUTSTANDING RECEIVABLES | E4: 2016-07-31 | I4: 2016-04-30
B6: Opening Balance | E6: =I13 -> 275076134.5 | I6: 349999833.4
B7: Principal Repayments - Scheduled | E7: =MIN('[1]16 Aug 16'!$H23,SUM([2]Sheet1!$B$3,[2]Sheet1!$B$4,[3]Sheet1!$B$3)) -> 18368178.68 | I7: 70539694.68
B8: Principal Repayments - Unscheduled | E8: ='[1]16 Aug 16'!H23-'Collateral Tables '!E7 -> 2981303.99 | I8: 4299938
A9: =SUM(E9:I9) -> 439714.14 | B9: Charge-Offs | E9: ='[1]16 Aug 16'!$H37 -> 355647.93 | I9: 84066.21
B10: Reinstatements
B11: New Receivables Purchased
B12: Non Cash Change in Receivables
B13: Closing Balance | E13: =E6-E7-E8-E9+E10+E11-E12 -> 253371003.9 | I13: 275076134.5
B15: PORTFOLIO STATISTICS
B17: Summary
B18: Number of contracts | E18: =[4]Summary!$B$4 -> 3263 | I18: 3422
B19: Dollar value of contracts | E19: =[4]Summary!$B$6 -> 77649.71006 | I19: 80384.60974
B20: Number of contracts closed during the Quarter | E20: =[4]Summary!$B$19 -> 157 | I20: 216
B21: Dollar value of contracts closed during the Quarter | E21: =[4]Summary!$B$20 -> 5997812.86 | I21: 10129289.88
A23: =SUM(I23) -> 0 | B23: Dollar Value of Recoveries from Collateral | E23: =[4]Summary!$C$16 -> -8677.59 | I23: 0
B24: Dollar Value of Recoveries from Other Sources | E24: 0 | I24: 0
B26: Average Term of Contracts (Months) | E26: =[5]Sheet1!$W$3265 -> 50.9050185 | I26: 50.60256169
B27: Average Term to Maturity (Months) | E27: =[5]Sheet1!$X$3265 -> 31.26182456 | I27: 33.58014303
B28: Average Residual / Balloon Payment * | E28: =[5]Sheet1!$AI$3265 -> 0.02262999179 | I28: 0.02404080908
B29: Average Seasoning (Months) | E29: =E26-E27 -> 19.64319394 | I29: 17.02241867
B30: Average Dollar Value of Individual Assets | E30: =E19/E18 -> 23.79703036 | I30: 23.4905347
B31: Weighted Average Interest Rate | E31: =[5]Sheet1!$AA$3265/100 -> 0.03646223799 | I31: 0.03665547144
B33: Payment in Arrears
A34: 1. 0 - 30 Days | B34: 0 - 30 Days | E34: =IFERROR(VLOOKUP($A34,'[6]Arrears Reporting'!$A$1:$D$6,3,FALSE),0) -> 3255 | F34: =IFERROR(VLOOKUP($A34,'[6]Arrears Reporting'!$A$1:$D$5,2,FALSE),0) -> 120639.01 | G34: =F34/F$50 -> 0.0004761358172 | I34: 3409 | J34: 279917.05 | K34: 0.001017598457
A35: 2. 31 - 60 Days | B35: 31 - 60 Days | E35: =IFERROR(VLOOKUP($A35,'[6]Arrears Reporting'!$A$1:$D$6,3,FALSE),0) -> 3 | F35: =IFERROR(VLOOKUP($A35,'[6]Arrears Reporting'!$A$1:$D$5,2,FALSE),0) -> 46074.11 | G35: =F35/F$50 -> 0.0001818444466 | I35: 8 | J35: 230113.48 | K35: 0.0008365446911
A36: 3. 61 - 90 Days | B36: 61 - 90 Days | E36: =IFERROR(VLOOKUP($A36,'[6]Arrears Reporting'!$A$1:$D$6,3,FALSE),0) -> 4 | F36: =IFERROR(VLOOKUP($A36,'[6]Arrears Reporting'!$A$1:$D$5,2,FALSE),0) -> 60200 | G36: 0.0002375962485 | I36: 3 | J36: 35237.55 | K36: 0.0001281010803
A37: 4. 91 - 120 Days | B37: 91 - 120 Days | E37: =IFERROR(VLOOKUP($A37,'[6]Arrears Reporting'!$A$1:$D$6,3,FALSE),0) -> 0 | F37: =IFERROR(VLOOKUP($A37,'[6]Arrears Reporting'!$A$1:$D$5,2,FALSE),0) -> 0 | G37: 0 | I37: 1 | J37: 48099.14 | K37: 0.0001748575538
A38: 5. 121 - 150 Days | B38: 121 - 150 Days | E38: =IFERROR(VLOOKUP($A38,'[6]Arrears Reporting'!$A$1:$D$6,3,FALSE),0) -> 1 | F38: =IFERROR(VLOOKUP($A38,'[6]Arrears Reporting'!$A$1:$D$5,2,FALSE),0) -> 5363.45 | G38: 2.116836543e-05 | I38: 1 | J38: 30045.72 | K38: 0.0001092269239
A39: 6. 151 - 180 Days | B39: 151 - 180 Days | E39: =IFERROR(VLOOKUP($A39,'[6]Arrears Reporting'!$A$1:$D$6,3,FALSE),0) -> 0 | F39: =IFERROR(VLOOKUP($A39,'[6]Arrears Reporting'!$A$1:$D$5,2,FALSE),0) -> 0 | G39: 0 | I39: 0 | J39: 0 | K39: 0
B40: Total | E40: =SUM(E34:E39) -> 3263 | F40: =SUM(F34:F39) -> 232276.57 | G40: =SUM(G34:G39) -> 0.0009167448777 | I40: 3422 | J40: 623412.94 | K40: 0.002266328706
B41: * Expressed as a % of Aggreg. Rec. closing bal. | F41: > 30 days | G41: =SUM(G35:G39) -> 0.0004406090605 | J41: > 30 days | K41: 0.001248730249
A43: 0 - 30 Days | B43: Account Balances in Arrears
A44: 1. 0 - 30 Days | B44: 0 - 30 Days | E44: =IFERROR(VLOOKUP($A44,'[6]Arrears Reporting'!$A$1:$D$6,3,FALSE),0) -> 3255 | F44: =IFERROR(VLOOKUP($A44,'[6]Arrears Reporting'!$A$1:$D$6,4,FALSE),0) -> 252870428.1 | G44: =F44/F$50 -> 0.9980243366 | I44: 3409 | J44: 273901148.8 | K44: 0.9957285071
A45: 2. 31 - 60 Days | B45: 31 - 60 Days | E45: =IFERROR(VLOOKUP($A45,'[6]Arrears Reporting'!$A$1:$D$6,3,FALSE),0) -> 3 | F45: =IFERROR(VLOOKUP($A45,'[6]Arrears Reporting'!$A$1:$D$6,4,FALSE),0) -> 122576.48 | G45: =F45/F$50 -> 0.000483782588 | I45: 8 | J45: 698753.64 | K45: 0.00254021906
A46: 3. 61 - 90 Days | B46: 61 - 90 Days | E46: =IFERROR(VLOOKUP($A46,'[6]Arrears Reporting'!$A$1:$D$6,3,FALSE),0) -> 4 | F46: =IFERROR(VLOOKUP($A46,'[6]Arrears Reporting'!$A$1:$D$6,4,FALSE),0) -> 366338.58 | G46: 0.001445858343 | I46: 3 | J46: 107754.56 | K46: 0.0003917263131
A47: 4. 91 - 120 Days | B47: 91 - 120 Days | E47: =IFERROR(VLOOKUP($A47,'[6]Arrears Reporting'!$A$1:$D$6,3,FALSE),0) -> 0 | F47: =IFERROR(VLOOKUP($A47,'[6]Arrears Reporting'!$A$1:$D$6,4,FALSE),0) -> 0 | G47: =F47/F$50 -> 0 | I47: 1 | J47: 84424.18 | K47: 0.0003069120487
A48: 5. 121 - 150 Days | B48: 121 - 150 Days | E48: =IFERROR(VLOOKUP($A48,'[6]Arrears Reporting'!$A$1:$D$6,3,FALSE),0) -> 1 | F48: =IFERROR(VLOOKUP($A48,'[6]Arrears Reporting'!$A$1:$D$6,4,FALSE),0) -> 11660.76 | G48: =F48/F$50 -> 4.602247226e-05 | I48: 1 | J48: 284053.38 | K48: 0.001032635494
A49: 6. 151 - 180 Days | B49: 151 - 180 Days | E49: =IFERROR(VLOOKUP($A49,'[6]Arrears Reporting'!$A$1:$D$6,3,FALSE),0) -> 0 | F49: =IFERROR(VLOOKUP($A49,'[6]Arrears Reporting'!$A$1:$D$6,4,FALSE),0) -> 0 | G49: 0 | I49: 0 | J49: 0 | K49: 0
B50: Total | E50: =SUM(E44:E49) -> 3263 | F50: =SUM(F44:F49) -> 253371003.9 | G50: =SUM(G44:G49) -> 1 | I50: 3422 | J50: 275076134.5 | K50: 1
A51: NSW | F51: > 30 days | G51: =SUM(G45:G49) -> 0.001975663404 | J51: > 30 days | K51: 0.004271492916
F52: >90 days | G52: =SUM(G47:G49) -> 4.602247226e-05 | J52: >90 days | K52: 0.001339547542
A54: VIC | B54: Geographic Distribution
A55: NSW | B55: New South Wales | E55: =F55/F$63 -> 0.2911050372 | F55: =IFERROR(VLOOKUP($A$55,'[6]Geographic '!$A$1:$C$10,3,FALSE),0) -> 73757575.52 | I55: 0.2970537644 | J55: 81712401.25
A56: VIC | B56: Victoria | E56: =F56/F$63 -> 0.1752908631 | F56: =IFERROR(VLOOKUP($A$56,'[6]Geographic '!$A$1:$C$10,3,FALSE),0) -> 44413621.96 | I56: 0.1802248851 | J56: 49575564.73
A57: QLD | B57: Queensland | E57: 0.1134562463 | F57: =IFERROR(VLOOKUP($A$57,'[6]Geographic '!$A$1:$C$10,3,FALSE),0) -> 28746523.03 | I57: 0.117573273 | J57: 32341601.47
A58: SA | B58: South Australia | E58: 0.1845992436 | F58: =IFERROR(VLOOKUP($A$58,'[6]Geographic '!$A$1:$C$10,3,FALSE),0) -> 46772095.68 | I58: 0.1791939462 | J58: 49291978.05
A59: NT | B59: Northern Territory | E59: 0.0004177779555 | F59: =IFERROR(VLOOKUP($A$59,'[6]Geographic '!$A$1:$C$10,3,FALSE),0) -> 105852.82 | I59: 0.0003848128089 | J59: 105852.82
A60: ACT | B60: Australian Capital Territory | E60: 0.0002204757416 | F60: =IFERROR(VLOOKUP($A$60,'[6]Geographic '!$A$1:$C$10,3,FALSE),0) -> 55862.16 | I60: 0.0002227655994 | J60: 61277.5
A61: TAS | B61: Tasmania | E61: 0.008849920019 | F61: =IFERROR(VLOOKUP($A$61,'[6]Geographic '!$A$1:$C$10,3,FALSE),0) -> 2242313.12 | I61: 0.009794302456 | J61: 2694178.86
A62: WA | B62: Western Australia | E62: 0.2260604361 | F62: =IFERROR(VLOOKUP($A$62,'[6]Geographic '!$A$1:$C$10,3,FALSE),0) -> 57277159.64 | I62: 0.2155522505 | J62: 59293279.85
B63: Total | E63: =SUM(E55:E62) -> 1 | F63: =SUM(F55:F62) -> 253371003.9 | I63: 1 | J63: 275076134.5
A64: AG | G64: =E13-F63 -> 0 | K64: 275076134.5
A65: CE | B65: Top Industry Distribution
A66: AGRICULTURAL MACHINERY | B66: Agricultural | E66: =F66/F$69 -> 0.986693672 | F66: =IFERROR(VLOOKUP(A66,'[6]Top Industry'!$A$1:$C$5,3,FALSE),) -> 249999566.2 | I66: 0.9852200433 | J66: 271010521.2
A67: CONSTRUCTION EQUIPMENT | B67: Construction | E67: =F67/F$69 -> 0.01330632798 | F67: =IFERROR(VLOOKUP($A$67,'[6]Top Industry'!$A$1:$C$5,3,FALSE),) -> 3371437.68 | I67: 0.01477995671 | J67: 4065613.36
A68: MOTOR VEHICLE - AG | B68: Motor Vehicle AG | E68: =F68/F$69 -> 0 | F68: =IFERROR(VLOOKUP($A$68,'[6]Top Industry'!$A$1:$C$5,3,FALSE),) -> 0 | I68: 0 | J68: 0
B69: Total | E69: =SUM(E66:E68) -> 1 | F69: =SUM(F66:F68) -> 253371003.9 | G69: =F63-F69 -> 5.066394806e-07 | I69: 1 | J69: 275076134.5 | K69: -275076134.5
A70: COMBINE
A71: 40-100 HP TRACTOR | B71: Collateral Types
A72: 100<140 HP TRACTOR | B72: 100-140 HP TRACTOR | E72: =IFERROR(F72/F$107,0) -> 0.1031342089 | F72: =IFERROR(VLOOKUP($A$72,[6]Collateral!$A$1:$C$30,3,FALSE),"") -> 26131218.04 | I72: 0.1070289451 | J72: 29441108.51
A73: 4 EWD Tractors | B73: 4 EWD Tractors | E73: 0.108167227 | F73: =IFERROR(VLOOKUP($A$73,[6]Collateral!$A$1:$C$30,3,FALSE),"") -> 27406438.9 | I73: 0.1081696967 | J73: 29754902.05
A74: 40<100 HP Tractor | B74: 40<100 HP Tractor | E74: =IFERROR(F74/F$107,0) -> 0 | F74: =IFERROR(VLOOKUP($A$74,[6]Collateral!$A$1:$C$30,3,FALSE),"") ->  | I74: 0
A75: 40<60 HP TRACTOR | B75: 40-60 HP TRACTOR | E75: =IFERROR(F75/F$107,0) -> 0.007503254715 | F75: =IFERROR(VLOOKUP($A$75,[6]Collateral!$A$1:$C$30,3,FALSE),"") -> 1901107.18 | I75: 0.008262193752 | J75: 2272732.32
A76: 4WD VEHICLE | B76: 4WD VEHICLE | E76: 7.22018294e-05 | F76: =IFERROR(VLOOKUP($A$76,[6]Collateral!$A$1:$C$30,3,FALSE),"") -> 18293.85 | I76: 8.109005908e-05 | J76: 22305.94
A77: 60<100 HP TRACTOR | B77: 60-100 HP TRACTOR | E77: 0.06389721325 | F77: =IFERROR(VLOOKUP($A$77,[6]Collateral!$A$1:$C$30,3,FALSE),"") -> 16189701.07 | I77: 0.06736803628 | J77: 18531339.01
A78: Backhoes | B78: Backhoes | E78: 0.0005335781045 | F78: =IFERROR(VLOOKUP($A$78,[6]Collateral!$A$1:$C$30,3,FALSE),"") -> 135193.22 | I78: 0.0005552519133 | J78: 152736.55
A79: BALERS, WINDROWERS, MOWERS, RAKES | B79: BALERS, WINDROWERS, MOWERS, RAKES | E79: 0.03881171274 | F79: =IFERROR(VLOOKUP($A$79,[6]Collateral!$A$1:$C$30,3,FALSE),"") -> 9833762.62 | I79: 0.03855102529 | J79: 10604467.02
A80: QUAD BIKES | B80: QUAD BIKES | E80: 3.228048937e-05 | F80: =IFERROR(VLOOKUP($A$80,[6]Collateral!$A$1:$C$30,3,FALSE),"") -> 8178.94 | I80: 3.362654494e-05 | J80: 9249.86
A81: Combines | B81: Combines | E81: 0.3546253702 | F81: =IFERROR(VLOOKUP($A$81,[6]Collateral!$A$1:$C$30,3,FALSE),"") -> 89851786.07 | I81: 0.3471765873 | J81: 95499993.64
A82: TRUCK - on Farm | B82: TRUCK - on Farm | E82: 0 | F82: =IFERROR(VLOOKUP($A$82,[6]Collateral!$A$1:$C$30,3,FALSE),"") ->  | I82: 7.090956848e-05 | J82: 19505.53
A83: Cotton Pickers | B83: Cotton Pickers | E83: 0.0002150698744 | F83: =IFERROR(VLOOKUP($A$83,[6]Collateral!$A$1:$C$30,3,FALSE),"") -> 54492.47 | I83: 0.0001980995919 | J83: 54492.47
A84: CRAWLERS / DOZERS | B84: CRAWLERS / DOZERS | E84: 0 | F84: =IFERROR(VLOOKUP($A$84,[6]Collateral!$A$1:$C$30,3,FALSE),"") ->  | I84: 0
A85: CULTIVATORS,SEEDERS, HARROWS | B85: CULTIVATORS,SEEDERS, HARROWS | E85: 0.01487702847 | F85: =IFERROR(VLOOKUP($A$85,[6]Collateral!$A$1:$C$30,3,FALSE),"") -> 3769407.64 | I85: 0.01434327644 | J85: 3945493.04
A86: Drill | B86: Drill | E86: 0.0005815119635 | F86: =IFERROR(VLOOKUP($A$86,[6]Collateral!$A$1:$C$30,3,FALSE),"") -> 147338.27 | I86: 0.0006334074757 | J86: 174235.28
A87: DUMP TRUCKS | B87: DUMP TRUCKS | E87: 0 | F87: =IFERROR(VLOOKUP($A$87,[6]Collateral!$A$1:$C$30,3,FALSE),"") ->  | I87: 0
A88: EXCAVATORS / GRADERS | B88: EXCAVATORS / GRADERS | E88: 0.004504911226 | F88: =IFERROR(VLOOKUP($A$88,[6]Collateral!$A$1:$C$30,3,FALSE),"") -> 1141413.88 | I88: 0.005080546673 | J88: 1397537.14
A89: FEEDERS, MIXERS, WAGONS, BINS, FEED STORAGE | B89: FEEDERS, MIXERS, WAGONS, BINS, FEED STORAGE | E89: 0.002812926495 | F89: =IFERROR(VLOOKUP($A$89,[6]Collateral!$A$1:$C$30,3,FALSE),"") -> 712714.01 | I89: 0.002727348126 | J89: 750228.38
A90: Front End Loader | B90: Front End Loader | E90: 0.0004311603076 | F90: =IFERROR(VLOOKUP($A$90,[6]Collateral!$A$1:$C$30,3,FALSE),"") -> 109243.52 | I90: 0.0005463704449 | J90: 150293.47
A91: Fronts | B91: Fronts | E91: 0.003945555665 | F91: =IFERROR(VLOOKUP($A$91,[6]Collateral!$A$1:$C$30,3,FALSE),"") -> 999689.4 | I91: 0.00397434351 | J91: 1093247.05
A92: GUIDANCE SYSTEMS | B92: Guidance Systems | E92: 0 | F92: =IFERROR(VLOOKUP($A$92,[6]Collateral!$A$1:$C$30,3,FALSE),"") ->  | I92: 0
A93: HARVESTERS - Other | B93: HARVESTERS - Other | E93: 0.003049856487 | F93: =IFERROR(VLOOKUP($A$93,[6]Collateral!$A$1:$C$30,3,FALSE),"") -> 772745.2 | I93: 0.00281193718 | J93: 773496.81
A94: Irrigation Equipment | B94: Irrigation Equipment | E94: 0.0009053550582 | F94: =IFERROR(VLOOKUP($A$94,[6]Collateral!$A$1:$C$30,3,FALSE),"") -> 229390.72 | I94: 0.0008339172004 | J94: 229390.72
A95: Other AG | B95: Other AG | E95: 0.005655253079 | F95: =IFERROR(VLOOKUP($A$95,[6]Collateral!$A$1:$C$30,3,FALSE),"") -> 1432877.15 | I95: 0.00568258018 | J95: 1563142.19
A96: MATERIALS HANDLING EQUIPMENT | B96: MATERIALS HANDLING EQUIPMENT | E96: 0.0002301239254 | F96: =IFERROR(VLOOKUP($A$96,[6]Collateral!$A$1:$C$30,3,FALSE),"") -> 58306.73 | I96: 0.0002507783168 | J96: 68983.13
A97: Other CE | B97: Other CE | E97: 0.0005805779972 | F97: =IFERROR(VLOOKUP($A$97,[6]Collateral!$A$1:$C$30,3,FALSE),"") -> 147101.63 | I97: 0.00097246597 | J97: 267502.18
A98: Over 100 HP Tractor | B98: Over 100 HP Tractor | E98: 0 | F98: =IFERROR(VLOOKUP($A$98,[6]Collateral!$A$1:$C$30,3,FALSE),"") ->  | I98: 0
A99: OVER 140 HP TRACTOR | B99: OVER 140 HP TRACTOR | E99: 0.2102992659 | F99: =IFERROR(VLOOKUP($A$99,[6]Collateral!$A$1:$C$30,3,FALSE),"") -> 53283736.12 | I99: 0.2113099802 | J99: 58126332.54
A100: Rollers | B100: Rollers | E100: 0 | F100: =IFERROR(VLOOKUP($A$100,[6]Collateral!$A$1:$C$30,3,FALSE),"") ->  | I100: 0
A101: SCRAPERS | B101: SCRAPERS | E101: 0.0002712557828 | F101: =IFERROR(VLOOKUP($A$101,[6]Collateral!$A$1:$C$30,3,FALSE),"") -> 68728.35 | I101: 0.0002746442549 | J101: 75548.08
A102: SKIDSTEER / UNILOADER | B102: SKIDSTEER / UNILOADER | E102: 0.00682139003 | F102: =IFERROR(VLOOKUP($A$102,[6]Collateral!$A$1:$C$30,3,FALSE),"") -> 1728342.44 | I102: 0.007280191331 | J102: 2002606.89
A103: SPRAYING EQUIPMENT | B103: SPRAYING EQUIPMENT | E103: 0.06500931091 | F103: =IFERROR(VLOOKUP($A$103,[6]Collateral!$A$1:$C$30,3,FALSE),"") -> 16471474.37 | I103: 0.06254556412 | J103: 17204792.01
A104: Trenchers | B104: Trenchers | E104: 0 | F104: =IFERROR(VLOOKUP($A$104,[6]Collateral!$A$1:$C$30,3,FALSE),"") ->  | I104: 0
A105: Under 40 HP Tractors | B105: Under 40 HP Tractors | E105: 0.002667908717 | F105: =IFERROR(VLOOKUP($A$105,[6]Collateral!$A$1:$C$30,3,FALSE),"") -> 675970.71 | I105: 0.002871108144 | J105: 789773.33
A106: Wheel Loaders | B106: Wheel Loaders | E106: 0.0003644909187 | F106: =IFERROR(VLOOKUP($A$106,[6]Collateral!$A$1:$C$30,3,FALSE),"") -> 92351.43 | I106: 0.0003660782502 | J106: 100699.39
B107: Total | E107: =SUM(E72:E106) -> 1 | F107: =SUM(F72:F106) -> 253371003.9 | G107: =F69-F107 -> -3.278255463e-07 | I107: 1 | J107: 275076134.5 | K107: 0
A108: $ 0 - $25,000
A109: $ 25,001 to $50,000 | B109: Contract Balance Distribution
A110: $0 - $25,000 | B110: $ 0 - $25,000 | E110: =IFERROR(F110/F$121,0) -> 0.05339303614 | F110: =IFERROR(VLOOKUP($A$110,'[6] Balance Distribution'!$A$1:$C$13,3,FALSE),"") -> 13528247.17 | I110: 0.04900330064 | J110: 13479638.52
A111: $25,001 - $50,000 | B111: $ 25,001 to $50,000 | E111: =IFERROR(F111/F$121,0) -> 0.1045479697 | F111: =IFERROR(VLOOKUP($A$111,'[6] Balance Distribution'!$A$1:$C$13,3,FALSE),"") -> 26489424.04 | I111: 0.09921119724 | J111: 27290632.64
A112: $50,001 - $75,000 | B112: $ 50,001 to $75,000 | E112: 0.1109213887 | F112: =IFERROR(VLOOKUP($A$112,'[6] Balance Distribution'!$A$1:$C$13,3,FALSE),"") -> 28104263.62 | I112: 0.1111248815 | J112: 30567802.85
A113: $75,001 - $100,000 | B113: $ 75,001 to $100,000 | E113: 0.0975419954 | F113: =IFERROR(VLOOKUP($A$113,'[6] Balance Distribution'!$A$1:$C$13,3,FALSE),"") -> 24714313.3 | I113: 0.09672943604 | J113: 26607959.36
A114: $100,001 - $125,000 | B114: $100,001 to $125,000 | E114: 0.09564621655 | F114: =IFERROR(VLOOKUP($A$114,'[6] Balance Distribution'!$A$1:$C$13,3,FALSE),"") -> 24233977.91 | I114: 0.09681211591 | J114: 26630702.62
A115: $125,001 - $150,000 | B115: $125,001 to $150,000 | E115: 0.08752880356 | F115: =IFERROR(VLOOKUP($A$115,'[6] Balance Distribution'!$A$1:$C$13,3,FALSE),"") -> 22177260.83 | I115: 0.08953609415 | J115: 24629242.68
A116: $150,001 - $200,000 | B116: $150,000 to $200,000 | E116: 0.1238644571 | F116: =IFERROR(VLOOKUP($A$116,'[6] Balance Distribution'!$A$1:$C$13,3,FALSE),"") -> 31383661.85 | I116: 0.1219520603 | J116: 33546101.35
A117: $200,001 - $300,000 | B117: $200,001 to $300,000 | E117: 0.2014215473 | F117: =IFERROR(VLOOKUP($A$117,'[6] Balance Distribution'!$A$1:$C$13,3,FALSE),"") -> 51034379.65 | I117: 0.2057159522 | J117: 56587548.95
A118: $300,001 - $400,000 | B118: $300,001 to $400,000 | E118: 0.06920960902 | F118: =IFERROR(VLOOKUP($A$118,'[6] Balance Distribution'!$A$1:$C$13,3,FALSE),"") -> 17535708.12 | I118: 0.06693786214 | J118: 18413008.37
A119: $400,001 - $500,000 | B119: $400,001 to $500,000 | E119: 0.0242208884 | F119: =IFERROR(VLOOKUP($A$119,'[6] Balance Distribution'!$A$1:$C$13,3,FALSE),"") -> 6136870.81 | I119: 0.03052896753 | J119: 8397790.38
A120: $500,001+ | B120: $500,000+ | E120: 0.0317040881 | F120: =IFERROR(VLOOKUP($A$120,'[6] Balance Distribution'!$A$1:$C$13,3,FALSE),"") -> 8032896.63 | I120: 0.03244813232 | J120: 8925706.81
A121: $200,001 to $300,000 | B121: Total | E121: =SUM(E110:E120) -> 1 | F121: =SUM(F110:F120) -> 253371003.9 | G121: =F107-F121 -> 0 | I121: 1 | J121: 275076134.5 | K121: 0
A122: 0
A123: 0 to 5 | B123: Residual / Balloon Payment Distribution
A124: 0 | B124: 0 | E124: =IFERROR(F124/F$134,0) -> 0.9134963724 | F124: =IFERROR(VLOOKUP($A$124,'[6]Residual '!$A$1:$C$11,3,FALSE),"") -> 231453493 | I124: 0.9110859187 | J124: 250617992.7
A125: 0 to 5 | B125: 0 to 5 | E125: =IFERROR(F125/F$134,0) -> 0 | F125: =IFERROR(VLOOKUP($A$125,'[6]Residual '!$A$1:$C$11,3,FALSE),"") ->  | I125: 0
A126: 6 to 10 | B126: 06 to 10 | E126: 0.0006548685817 | F126: =IFERROR(VLOOKUP($A$126,'[6]Residual '!$A$1:$C$11,3,FALSE),"") -> 165924.71 | I126: 0.0006165197875 | J126: 169589.88
A127: 11 to 15 | B127: 11 to 15 | E127: 0.007420940403 | F127: =IFERROR(VLOOKUP($A$127,'[6]Residual '!$A$1:$C$11,3,FALSE),"") -> 1880251.12 | I127: 0.007526171485 | J127: 2070270.16
A128: 16 to 20 | B128: 16 to 20 | E128: 0.02533978534 | F128: =IFERROR(VLOOKUP($A$128,'[6]Residual '!$A$1:$C$11,3,FALSE),"") -> 6420366.85 | I128: 0.02457669245 | J128: 6760461.56
A129: 21 to 25 | B129: 21 to 25 | E129: 0.01801105904 | F129: =IFERROR(VLOOKUP($A$129,'[6]Residual '!$A$1:$C$11,3,FALSE),"") -> 4563480.11 | I129: 0.01752467828 | J129: 4820620.76
A130: 26 to 30 | B130: 26 to 30 | E130: 0.01177006818 | F130: =IFERROR(VLOOKUP($A$130,'[6]Residual '!$A$1:$C$11,3,FALSE),"") -> 2982193.99 | I130: 0.0127585968 | J130: 3509585.49
A131: 31 to 35 | B131: 31 to 35 | E131: 0.007429408973 | F131: =IFERROR(VLOOKUP($A$131,'[6]Residual '!$A$1:$C$11,3,FALSE),"") -> 1882396.81 | I131: 0.007338744357 | J131: 2018713.43
A132: 36 to 40 | B132: 36 to 40 | E132: 0.01002773637 | F132: =IFERROR(VLOOKUP($A$132,'[6]Residual '!$A$1:$C$11,3,FALSE),"") -> 2540737.63 | I132: 0.009303351068 | J132: 2559129.85
A133: 41+ % | B133: 41+% | E133: 0.005849760734 | F133: =IFERROR(VLOOKUP($A$133,'[6]Residual '!$A$1:$C$11,3,FALSE),"") -> 1482159.75 | I133: 0.009269327033 | J133: 2549770.65
E134: =SUM(E124:E133) -> 1 | F134: =SUM(F124:F133) -> 253371003.9 | G134: =F121-F134 -> 0 | I134: 1 | J134: 275076134.5 | K134: 7.152557373e-07
A135: 2004 Q1
A136: 2004 Q2 | B136: Quarter of Maturity Distribution
A137: =RIGHT(B137,2)&LEFT(B137,4) -> Q12016 | B137: 2016Q1 | E137: =F137/F$166 -> 0 | F137: =IFERROR(VLOOKUP($A$137,'[6]Quarter of Maturity Dist'!$A$1:$C$22,3,FALSE),0) -> 0 | I137: 0 | J137: 0
A138: Q22016 | B138: 2016Q2 | E138: 1.83443643e-05 | F138: =IFERROR(VLOOKUP($A$138,'[6]Quarter of Maturity Dist'!$A$1:$C$22,3,FALSE),0) -> 4647.93 | I138: 0.006176976796 | J138: 1699138.9
A139: =RIGHT(B139,2)&LEFT(B139,4) -> Q32016 | B139: 2016Q3 | E139: 0.003944923273 | F139: =IFERROR(VLOOKUP($A$139,'[6]Quarter of Maturity Dist'!$A$1:$C$22,3,FALSE),0) -> 999529.17 | I139: 0.004850806204 | J139: 1334341.02
A140: =RIGHT(B140,2)&LEFT(B140,4) -> Q42016 | B140: 2016Q4 | E140: 0.00370160869 | F140: =IFERROR(VLOOKUP($A$140,'[6]Quarter of Maturity Dist'!$A$1:$C$22,3,FALSE),0) -> 937880.31 | I140: 0.004846832868 | J140: 1333248.05
A141: Q12017 | B141: 2017Q1 | E141: 0.03537044552 | F141: =IFERROR(VLOOKUP($A$141,'[6]Quarter of Maturity Dist'!$A$1:$C$22,3,FALSE),0) -> 8961845.29 | I141: 0.03676917141 | J141: 10114321.54
A142: Q22017 | B142: 2017Q2 | E142: 0.01981170123 | F142: =IFERROR(VLOOKUP($A$142,'[6]Quarter of Maturity Dist'!$A$1:$C$22,3,FALSE),0) -> 5019710.63 | I142: 0.02657185867 | J142: 7309284.17
A143: Q32017 | B143: 2017Q3 | E143: 0.01999114078 | F143: =IFERROR(VLOOKUP($A$143,'[6]Quarter of Maturity Dist'!$A$1:$C$22,3,FALSE),0) -> 5065175.41 | I143: 0.02344709282 | J143: 6449735.66
A144: Q42017 | B144: 2017Q4 | E144: 0.03231590957 | F144: =IFERROR(VLOOKUP($A$144,'[6]Quarter of Maturity Dist'!$A$1:$C$22,3,FALSE),0) -> 8187914.45 | I144: 0.03396266076 | J144: 9342317.44
A145: Q12018 | B145: 2018Q1 | E145: 0.08832679811 | F145: =IFERROR(VLOOKUP($A$145,'[6]Quarter of Maturity Dist'!$A$1:$C$22,3,FALSE),0) -> 22379449.51 | I145: 0.08566295619 | J145: 23563834.86
A146: Q22018 | B146: 2018Q2 | E146: 0.05740535896 | F146: =IFERROR(VLOOKUP($A$146,'[6]Quarter of Maturity Dist'!$A$1:$C$22,3,FALSE),0) -> 14544853.43 | I146: 0.06264049576 | J146: 17230905.44
A147: Q32018 | B147: 2018Q3 | E147: 0.04938034837 | F147: =IFERROR(VLOOKUP($A$147,'[6]Quarter of Maturity Dist'!$A$1:$C$22,3,FALSE),0) -> 12511548.44 | I147: 0.05072482127 | J147: 13953187.76
A148: Q42018 | B148: 2018Q4 | E148: 0.06041735622 | F148: =IFERROR(VLOOKUP($A$148,'[6]Quarter of Maturity Dist'!$A$1:$C$22,3,FALSE),0) -> 15308006.2 | I148: 0.05947342134 | J148: 16359718.85
A149: Q12019 | B149: 2019Q1 | E149: 0.1851572591 | F149: =IFERROR(VLOOKUP($A$149,'[6]Quarter of Maturity Dist'!$A$1:$C$22,3,FALSE),0) -> 46913480.62 | I149: 0.1730369302 | J149: 47598329.9
A150: Q22019 | B150: 2019Q2 | E150: 0.08422781636 | F150: =IFERROR(VLOOKUP($A$150,'[6]Quarter of Maturity Dist'!$A$1:$C$22,3,FALSE),0) -> 21340886.39 | I150: 0.08554092332 | J150: 23530266.53
A151: Q32019 | B151: 2019Q3 | E151: 0.04898144416 | F151: =IFERROR(VLOOKUP($A$151,'[6]Quarter of Maturity Dist'!$A$1:$C$22,3,FALSE),0) -> 12410477.68 | I151: 0.04804366505 | J151: 13215665.67
A152: Q42019 | B152: 2019Q4 | E152: 0.03724025213 | F152: =IFERROR(VLOOKUP($A$152,'[6]Quarter of Maturity Dist'!$A$1:$C$22,3,FALSE),0) -> 9435600.07 | I152: 0.03623710845 | J152: 9967963.72
A153: Q12020 | B153: 2020Q1 | E153: 0.1539525981 | F153: =IFERROR(VLOOKUP($A$153,'[6]Quarter of Maturity Dist'!$A$1:$C$22,3,FALSE),0) -> 39007124.34 | I153: 0.1440382362 | J153: 39621481.24
A154: Q22020 | B154: 2020Q2 | E154: 0.06894960437 | F154: =IFERROR(VLOOKUP($A$154,'[6]Quarter of Maturity Dist'!$A$1:$C$22,3,FALSE),0) -> 17469830.48 | I154: 0.06868983666 | J154: 18894934.75
A155: Q32020 | B155: 2020Q3 | E155: 0.03762578457 | F155: =IFERROR(VLOOKUP($A$155,'[6]Quarter of Maturity Dist'!$A$1:$C$22,3,FALSE),0) -> 9533282.81 | I155: 0.03693063369 | J155: 10158735.96
A156: Q42020 | B156: 2020Q4 | E156: 0.01132738599 | F156: =IFERROR(VLOOKUP($A$156,'[6]Quarter of Maturity Dist'!$A$1:$C$22,3,FALSE),0) -> 2870031.16 | I156: 0.0106479374 | J156: 2928993.46
A157: Q12021 | B157: 2021Q1 | E157: 0.001853920152 | F157: =IFERROR(VLOOKUP($A$157,'[6]Quarter of Maturity Dist'!$A$1:$C$22,3,FALSE),0) -> 469729.61 | I157: 0.001707634909 | J157: 469729.61
A158: Q22021 | B158: 2021Q2 | E158: 0 | F158: =IFERROR(VLOOKUP($A$158,'[6]Quarter of Maturity Dist'!$A$1:$C$22,3,FALSE),0) -> 0 | I158: 0 | J158: 0
A159: Q32021 | B159: 2021Q3 | E159: 0 | F159: =IFERROR(VLOOKUP($A$159,'[6]Quarter of Maturity Dist'!$A$1:$C$22,3,FALSE),0) -> 0 | I159: 0 | J159: 0
A160: Q42021 | B160: 2021Q4 | E160: 0 | F160: =IFERROR(VLOOKUP($A$160,'[6]Quarter of Maturity Dist'!$A$1:$C$22,3,FALSE),0) -> 0 | I160: 0 | J160: 0
A161: Q12022 | B161: 2022Q1 | E161: 0 | F161: =IFERROR(VLOOKUP($A$161,'[6]Quarter of Maturity Dist'!$A$1:$C$22,3,FALSE),0) -> 0 | I161: 0 | J161: 0
A162: Q22022 | B162: 2022Q2 | E162: 0 | F162: =IFERROR(VLOOKUP($A$162,'[6]Quarter of Maturity Dist'!$A$1:$C$22,3,FALSE),0) -> 0 | I162: 0 | J162: 0
A163: Q32022 | B163: 2022Q3 | E163: 0 | F163: =IFERROR(VLOOKUP($A$163,'[6]Quarter of Maturity Dist'!$A$1:$C$22,3,FALSE),0) -> 0 | I163: 0 | J163: 0
A164: Q42022 | B164: 2022Q4 | E164: 0 | F164: =IFERROR(VLOOKUP($A$164,'[6]Quarter of Maturity Dist'!$A$1:$C$22,3,FALSE),0) -> 0 | I164: 0 | J164: 0
E166: =SUM(E137:E164) -> 1 | F166: =SUM(F137:F165) -> 253371003.9 | G166: =F134-F166 -> -2.682209015e-07 | I166: 1 | J166: 275076134.5 | K166: -5.960464478e-07
A167: 0 to 6 months
A168: 07 to 12 months | B168: Seasoning Distribution
A169: 0 to 6 months | B169: 0 to 6 months | E169: =F169/F$180 -> 0 | F169: =IFERROR(VLOOKUP($A$169,'[6]Seasoning Distribution'!$A$1:$C$12,3,FALSE),0) -> 0 | I169: 0.0004042561896 | J169: 111201.23
A170: 07 to 12 months | B170: 07 to 12 months | E170: 0.2080950005 | F170: =IFERROR(VLOOKUP($A$170,'[6]Seasoning Distribution'!$A$1:$C$12,3,FALSE),0) -> 52725239.2 | I170: 0.3380213664 | J170: 92981610.86
A171: 13 to 18 months | B171: 13 to 18 months | E171: 0.3038324637 | F171: =IFERROR(VLOOKUP($A$171,'[6]Seasoning Distribution'!$A$1:$C$12,3,FALSE),0) -> 76982336.35 | I171: 0.2629515795 | J171: 72331704.07
A172: 19 to 24 months | B172: 19 to 24 months | E172: 0.2238922745 | F172: =IFERROR(VLOOKUP($A$172,'[6]Seasoning Distribution'!$A$1:$C$12,3,FALSE),0) -> 56727810.35 | I172: 0.1798201156 | J172: 49464222.3
A173: 25 to 30 months | B173: 25 to 30 months | E173: 0.1167630003 | F173: =IFERROR(VLOOKUP($A$173,'[6]Seasoning Distribution'!$A$1:$C$12,3,FALSE),0) -> 29584358.62 | I173: 0.1087961731 | J173: 29927230.74
A174: 31 to 36 months | B174: 31 to 36 months | E174: 0.108914545 | F174: =IFERROR(VLOOKUP($A$174,'[6]Seasoning Distribution'!$A$1:$C$12,3,FALSE),0) -> 27595787.61 | I174: 0.08366485486 | J174: 23014204.87
A175: 37 to 42 months | B175: 37 to 42 months | E175: 0.01990237861 | F175: =IFERROR(VLOOKUP($A$175,'[6]Seasoning Distribution'!$A$1:$C$12,3,FALSE),0) -> 5042685.65 | I175: 0.008573008938 | J175: 2358230.16
A176: 43 to 48 months | B176: 43 to 48 months | E176: 0.01478826469 | F176: =IFERROR(VLOOKUP($A$176,'[6]Seasoning Distribution'!$A$1:$C$12,3,FALSE),0) -> 3746917.47 | I176: 0.01100645192 | J176: 3027612.25
A177: 49 to 54 months | B177: 49 to 54 months | E177: 0.002192461732 | F177: =IFERROR(VLOOKUP($A$177,'[6]Seasoning Distribution'!$A$1:$C$12,3,FALSE),0) -> 555506.23 | I177: 0.003088208148 | J177: 849492.36
A178: 55 to 60 months | B178: 55 to 60 months | E178: 0.001601266576 | F178: =IFERROR(VLOOKUP($A$178,'[6]Seasoning Distribution'!$A$1:$C$12,3,FALSE),0) -> 405714.52 | I178: 0.0036289038 | J178: 998224.83
A179: 60+ months | B179: 61 to 72 months | E179: 1.83443643e-05 | F179: =IFERROR(VLOOKUP($A$179,'[6]Seasoning Distribution'!$A$1:$C$12,3,FALSE),0) -> 4647.93 | I179: 4.508155541e-05 | J179: 12400.86
A180: 61 to 72 months | B180: Total | E180: =SUM(E169:E179) -> 1 | F180: =SUM(F169:F179) -> 253371003.9 | G180: =F166-F180 -> 0 | I180: 1 | J180: 275076134.5 | K180: 0
B182: Remaining Term Distribution
A183: 0 - 12 months | B183: 0-12 Months | E183: =F183/F$189 -> 0.06832092466 | F183: =IFERROR(VLOOKUP($A$183,'[6]Remaining Term'!$A$1:$C$6,3,FALSE),0) -> 17310541.27 | I183: 0.06370194644 | J183: 17522885.19
A184: 13 - 24 months | B184: 13-24 Months | E184: 0.2051331973 | F184: =IFERROR(VLOOKUP($A$184,'[6]Remaining Term'!$A$1:$C$6,3,FALSE),0) -> 51974804.15 | I184: 0.1876596761 | J184: 51620698.3
A185: 25 - 36 months | B185: 25-36 Months | E185: 0.3813217397 | F185: =IFERROR(VLOOKUP($A$185,'[6]Remaining Term'!$A$1:$C$6,3,FALSE),0) -> 96615872.01 | I185: 0.3734731739 | J185: 102733557
A186: 37 - 48 months | B186: 37-48 Months | E186: 0.3063085613 | F186: =IFERROR(VLOOKUP($A$186,'[6]Remaining Term'!$A$1:$C$6,3,FALSE),0) -> 77609707.69 | I186: 0.2923420974 | J186: 80416334.11
A187: 49 - 60 months | B187: 49-60 Months | E187: 0.03891557699 | F187: =IFERROR(VLOOKUP($A$187,'[6]Remaining Term'!$A$1:$C$6,3,FALSE),0) -> 9860078.81 | I187: 0.08282310622 | J187: 22782659.91
A188: 60+ Months | B188: 60+ Months | E188: 0 | F188: =IFERROR(VLOOKUP($A$188,'[6]Remaining Term'!$A$1:$C$6,3,FALSE),0) -> 0 | I188: 0 | J188: 0
E189: =SUM(E183:E188) -> 1 | F189: =SUM(F183:F188) -> 253371003.9 | G189: =F180-F189 -> 0 | I189: 1 | J189: 275076134.5 | K189: 0
B191: Origination LVR Distribution
A192: 01. 10% to 20% | B192: 10% to 20% | E192: =F192/F$202 -> 0.0002622652907 | F192: =IFERROR(VLOOKUP($A$192,'[6]LVR Band'!$A$1:$C$11,3,FALSE),0) -> 66450.42 | I192: 0.0002415710113 | J192: 66450.42
A193: 02. 21% to 30% | B193: 21% to 30% | E193: 0.01043505645 | F193: =IFERROR(VLOOKUP($A$193,'[6]LVR Band'!$A$1:$C$11,3,FALSE),0) -> 2643940.73 | I193: 0.01025936225 | J193: 2822105.71
A194: 03. 31% to 40% | B194: 31% to 40% | E194: 0.04082464524 | F194: =IFERROR(VLOOKUP($A$194,'[6]LVR Band'!$A$1:$C$11,3,FALSE),0) -> 10343781.35 | I194: 0.03944824188 | J194: 10851269.89
A195: 04. 41% to 50% | B195: 41% to 50% | E195: 0.09836458511 | F195: =IFERROR(VLOOKUP($A$195,'[6]LVR Band'!$A$1:$C$11,3,FALSE),0) -> 24922733.68 | I195: 0.09521667845 | J195: 26191835.85
A196: 05. 51% to 60% | B196: 51% to 60% | E196: 0.1491638503 | F196: =IFERROR(VLOOKUP($A$196,'[6]LVR Band'!$A$1:$C$11,3,FALSE),0) -> 37793794.49 | I196: 0.146525665 | J196: 40305713.54
A197: 06. 61% to 70% | B197: 61% to 70% | E197: 0.2032202108 | F197: =IFERROR(VLOOKUP($A$197,'[6]LVR Band'!$A$1:$C$11,3,FALSE),0) -> 51490108.84 | I197: 0.2023916858 | J197: 55673122.6
A198: 07. 71% to 80% | B198: 71% to 80% | E198: 0.2104363562 | F198: =IFERROR(VLOOKUP($A$198,'[6]LVR Band'!$A$1:$C$11,3,FALSE),0) -> 53318470.84 | I198: 0.2099333936 | J198: 57747666.42
A199: 08. 81% to 90% | B199: 81% to 90% | E199: 0.1813396534 | F199: =IFERROR(VLOOKUP($A$199,'[6]LVR Band'!$A$1:$C$11,3,FALSE),0) -> 45946210.03 | I199: 0.1855272105 | J199: 51034107.91
A200: 09. 91% to 100% | B200: 91% to 100% | E200: 0.1059533772 | F200: =IFERROR(VLOOKUP($A$200,'[6]LVR Band'!$A$1:$C$11,3,FALSE),0) -> 26845513.55 | I200: 0.1104561915 | J200: 30383862.19
A201: > 100% | B201: > 100% | E201: 0 | F201: =IFERROR(VLOOKUP($A$201,'[6]LVR Band'!$A$1:$C$11,3,FALSE),0) -> 0 | I201: 0 | J201: 0
E202: =SUM(E192:E201) -> 1 | F202: =SUM(F192:F201) -> 253371003.9 | G202: =F189-F202 -> 0 | I202: 1 | J202: 275076134.5 | K202: 0
B204: New v Used
A205: New | B205: New | E205: =F205/F$208 -> 0.9157072006 | F205: =IFERROR(VLOOKUP($A$205,'[6]New v Used'!$A$1:$C$4,3,FALSE),0) -> 232013652.7 | I205: 0.9151503341 | J205: 251736016.4
A206: USed | B206: Used | E206: =F206/F$208 -> 0.08429279937 | F206: =IFERROR(VLOOKUP($A$206,'[6]New v Used'!$A$1:$C$4,3,FALSE),0) -> 21357351.2 | I206: 0.08484966593 | J206: 23340118.12
A207: Used
E208: =SUM(E205:E206) -> 1 | F208: =SUM(F205:F206) -> 253371003.9 | G208: =F202-F208 -> 2.682209015e-07 | I208: 1 | J208: 275076134.5 | K208: 7.152557373e-07
B210: Contract Type
A211: Finance Lease | B211: Finance Lease | E211: =F211/F$214 -> 0.01401723707 | F211: =IFERROR(VLOOKUP($A$211,'[6]Loan Type'!$A$1:$C$4,3,FALSE),0) -> 3551561.43 | I211: 0.01544419049 | J211: 4248328.22
A212: Goods Mortgage | B212: Goods Mortgage | E212: =F212/F$214 -> 0.9859827629 | F212: =IFERROR(VLOOKUP($A$212,'[6]Loan Type'!$A$1:$C$4,3,FALSE),0) -> 249819442.5 | I212: 0.9845558095 | J212: 270827806.3
A213: Hire Purchase | B213: Hire Purchase | E213: =F213/F$214 -> 0 | F213: =IFERROR(VLOOKUP($A$213,'[6]Loan Type'!$A$1:$C$4,3,FALSE),0) -> 0 | I213: 0 | J213: 0
E214: =SUM(E211:E213) -> 1 | F214: =SUM(F211:F213) -> 253371003.9 | G214: =F208-F214 -> 2.384185791e-07 | I214: 1 | J214: 275076134.5 | K214: 0
... 30 more rows

Sheet Note Balance
C1: TOTAL NOTE BALANCES
D2: Total Notes | E2: Class A1 Notes | F2: Class A2 Notes | G2: Class B Notes | H2: Class C Notes | I2: Class D Notes
C3: Initial Invested Amount | D3: 350000000 | E3: 105000000 | F3: 198000000 | G3: 11300000 | H3: 10500000 | I3: 6200000
A4: (a) | C4: Invested Amount as at Previous Payment Date: 3 March 2016 | D4: 350000000 | E4: 105000000 | F4: 198000000 | G4: 11300000 | H4: 10500000 | I4: 6200000
A5: (b) | C5: Stated Amount as at Previous Payment Date: 3 March 2016 | D5: 350000000 | E5: 105000000 | F5: 198000000 | G5: 11300000 | H5: 10500000 | I5: 6200000
A6: (d) | C6: Principal Payments to Noteholders on Payment Date | D6: 350000000 | E6: 74839799.26 | F6: 0 | G6: 0 | H6: 0 | I6: 0
C7: Gross Aggregate Charge-Offs | D7: 0 | E7: 0 | F7: 0 | G7: 0 | H7: 0 | I7: 0
C8: Gross Aggregate Reinstatements of charge-offs | D8: 0 | E8: 0 | F8: 0 | G8: 0 | H8: 0 | I8: 0
A9: (e) | C9: Aggregate Charge-Offs for this Collection Period | D9: 84066.21 | E9: 0 | F9: 0 | G9: 0 | H9: 0 | I9: 0
A10: (f) | C10: Reinstatements relating to Charge-offs that have occurred this Collection Period | D10: 0 | E10: 0 | F10: 0 | G10: 0 | H10: 0 | I10: 0
C11: Aggregate Carry Over Charge-offs not previously reinstated | D11: 0 | E11: 0 | F11: 0 | G11: 0 | H11: 0 | I11: 0
C12: Reinstatements of Carry Over Charge-offs not previously reinstated | D12: 0 | E12: 0 | F12: 0 | G12: 0 | H12: 0 | I12: 0
C13: Aggregate Charge-Offs not reinstated and to be carried over to next period | D13: 84066.21 | E13: 0 | F13: 0 | G13: 0 | H13: 0 | I13: 0
C14: Invested Amount as at Payment Date: 16 May 2016 | D14: 275160200.7 | E14: 30160200.74 | F14: 198000000 | G14: 11300000 | H14: 10500000 | I14: 6200000
C15: Stated Amount as at Payment Date: 16 May 2016 | D15: 275076134.5 | E15: 30160200.74 | F15: 198000000 | G15: 11300000 | H15: 10500000 | I15: 6200000
C16: Bond Factor at Payment Date: 16 May 2016 | E16: 0.287240007 | F16: 1 | G16: 1 | H16: 1 | I16: 1
C17: Coupon Margin | E17: 0.006 | F17: 0.013 | G17: 0.02 | H17: 0.025 | I17: 0.0245
C18: Coupon Rate (3 month BBSW + margin) | E18: 0.0291 | F18: 0.0361 | G18: 0.0431 | H18: 0.0481 | I18: 0.0476
C19: Days in Coupon Period | E19: 74 | F19: 74 | G19: 74 | H19: 74 | I19: 74
C20: Coupon Entitlement to be paid out on the current Payment Date: 16 May 2016 | E20: 619471.23 | F20: 1449143.01 | G20: 98740.33 | H20: 102393.7 | I20: 59832.55
C23: TOTAL NOTE BALANCES
D24: Total Notes | E24: Class A1 Notes | F24: Class A2 Notes | G24: Class B Notes | H24: Class C Notes | I24: Class D Notes
C25: Initial Invested Amount | D25: 350000000 | E25: 105000000 | F25: 198000000 | G25: 11300000 | H25: 10500000 | I25: 6200000
A26: (a) | C26: Invested Amount as at Previous Payment Date: 16 May 2016 | D26: 350000000 | E26: 30160200.74 | F26: 198000000 | G26: 11300000 | H26: 10500000 | I26: 6200000
A27: (b) | C27: Stated Amount as at Previous Payment Date: 16 May 2016 | D27: 275160200.7 | E27: 30160200.74 | F27: 198000000 | G27: 11300000 | H27: 10500000 | I27: 6200000
A28: (d) | C28: Principal Payments to Noteholders on Payment Date | D28: 275076134.5 | E28: 21349482.67 | F28: 0 | G28: 0 | H28: 0 | I28: 0
C29: Gross Aggregate Charge-Offs | D29: 0 | E29: 0 | F29: 0 | G29: 0 | H29: 0 | I29: 0
C30: Gross Aggregate Reinstatements of charge-offs | D30: 0 | E30: 0 | F30: 0 | G30: 0 | H30: 0 | I30: 0
A31: (e) | C31: Aggregate Charge-Offs for this Collection Period | D31: 355647.93 | E31: 0 | F31: 0 | G31: 0 | H31: 0 | I31: 0
A32: (f) | C32: Reinstatements relating to Charge-offs that have occurred this Collection Period | D32: 0 | E32: 0 | F32: 0 | G32: 0 | H32: 0 | I32: 0
C33: Aggregate Carry Over Charge-offs not previously reinstated | D33: 84066.21 | E33: 0 | F33: 0 | G33: 0 | H33: 0 | I33: 0
C34: Reinstatements of Carry Over Charge-offs not previously reinstated | D34: 0 | E34: 0 | F34: 0 | G34: 0 | H34: 0 | I34: 0
C35: Aggregate Charge-Offs not reinstated and to be carried over to next period | D35: 439714.14 | E35: 0 | F35: 0 | G35: 0 | H35: 0 | I35: 0
C36: Invested Amount as at Payment Date: 16 August 2016 | D36: 253810718.1 | E36: 8810718.07 | F36: 198000000 | G36: 11300000 | H36: 10500000 | I36: 6200000
C37: Stated Amount as at Payment Date: 16 August 2016 | D37: 253371003.9 | E37: 8810718.07 | F37: 198000000 | G37: 11300000 | H37: 10500000 | I37: 6200000
C38: Bond Factor at Payment Date: 16 August 2016 | E38: 0.08391160067 | F38: 1 | G38: 1 | H38: 1 | I38: 1
C39: Coupon Margin | E39: 0.006 | F39: 0.013 | G39: 0.02 | H39: 0.025 | I39: 0.0245
C40: Coupon Rate (3 month BBSW + margin) | E40: 0.02585 | F40: 0.03285 | G40: 0.03985 | H40: 0.04485 | I40: 0.04435
C41: Days in Coupon Period | E41: 92 | F41: 92 | G41: 92 | H41: 92 | I41: 92
C42: Coupon Entitlement to be paid out on the current Payment Date: 16 August 2016 | E42: 196512.3 | F42: 1639440 | G42: 113501.53 | H42: 118698.9 | I42: 69307.51

Sheet Cumulative Defaults
A1: Cumulative Defaults & Losses
A3: Month | B3: Gross Losses | C3: Recoveries | D3: Net Losses
A4: 2016-04-01 | B4: 0.0002401891714 | C4: 0 | D4: =B4-C4 -> 0.0002401891714
A5: 2016-07-01 | B5: =B4+'Collateral Tables '!E9/350000000 -> 0.001256326114 | C5: =C4+'Collateral Tables '!E23/350000000 -> -2.479311429e-05 | D5: 0.001281119229
A6: 2016-10-01
A7: 2017-01-01
A8: 2017-04-01
A9: 2017-07-01
A10: 2017-10-01
A11: 2018-01-01
A12: 2018-04-01
A13: 2018-07-01
A14: 2018-10-01
